[Event "Titled Tuesday Blitz July 4 Early 2023"]
[White "Ter-Sahakyan, Samvel"]
[Black "So, Wesley"]
[WhiteFideId "13302531"]
[BlackFideId "5202213"]
[WhiteElo "2868"]
[BlackElo "3071"]
[Result "1/2-1/2"]
[Round "10"]
[TimeControl "180+2"]
[Date "2023.07.04"]
[WhiteClock "0:00:05"]
[BlackClock "0:00:03"]
[Board "14"]

1. d4 {[%clk 0:03:00]}  d5 {[%clk 0:02:58]} 2. c4 {[%clk 0:02:59]}  e6 {[%clk 0:02:58]} 3. Nf3 {[%clk 0:02:59]}  Nf6 {[%clk 0:02:57]} 4. g3 {[%clk 0:02:59]}  Bb4+ {[%clk 0:02:54]} 5. Bd2 {[%clk 0:02:57]}  Be7 {[%clk 0:02:53]} 6. Bg2 {[%clk 0:02:57]}  Nbd7 {[%clk 0:02:54]} 7. Qc2 {[%clk 0:02:56]}  Ne4 {[%clk 0:02:51]} 8. O-O {[%clk 0:02:51]}  O-O {[%clk 0:02:51]} 9. Bf4 {[%clk 0:02:44]}  c6 {[%clk 0:02:51]} 10. Nc3 {[%clk 0:02:44]}  g5 {[%clk 0:02:49]} 11. Bc1 {[%clk 0:02:41]}  f5 {[%clk 0:02:49]} 12. Rb1 {[%clk 0:02:27]}  Bf6 {[%clk 0:02:37]} 13. Rd1 {[%clk 0:02:24]}  a5 {[%clk 0:02:26]} 14. a3 {[%clk 0:02:23]}  Qe7 {[%clk 0:02:07]} 15. b4 {[%clk 0:01:46]}  axb4 {[%clk 0:02:07]} 16. axb4 {[%clk 0:01:47]}  Nb6 {[%clk 0:02:00]} 17. Nxe4 {[%clk 0:00:56]}  fxe4 {[%clk 0:02:01]} 18. Ne5 {[%clk 0:00:55]}  Bxe5 {[%clk 0:01:51]} 19. dxe5 {[%clk 0:00:55]}  Nxc4 {[%clk 0:01:43]} 20. Bxe4 {[%clk 0:00:54]}  Nxe5 {[%clk 0:01:42]} 21. Bg2 {[%clk 0:00:41]}  Nc4 {[%clk 0:01:36]} 22. e4 {[%clk 0:00:38]}  Na3 {[%clk 0:01:27]} 23. Bxa3 {[%clk 0:00:36]}  Rxa3 {[%clk 0:01:28]} 24. b5 {[%clk 0:00:35]}  Bd7 {[%clk 0:01:16]} 25. bxc6 {[%clk 0:00:35]}  bxc6 {[%clk 0:01:16]} 26. Rb7 {[%clk 0:00:35]}  Rf7 {[%clk 0:01:01]} 27. Rb8+ {[%clk 0:00:30]}  Rf8 {[%clk 0:00:58]} 28. Rb7 {[%clk 0:00:30]}  Rf7 {[%clk 0:00:54]} 29. Rb8+ {[%clk 0:00:30]}  Kg7 {[%clk 0:00:53]} 30. Qb2+ {[%clk 0:00:27]}  Kh6 {[%clk 0:00:53]} 31. Rg8 {[%clk 0:00:20]}  Ra4 {[%clk 0:00:35]} 32. h4 {[%clk 0:00:19]}  Rg7 {[%clk 0:00:33]} 33. hxg5+ {[%clk 0:00:12]}  Qxg5 {[%clk 0:00:33]} 34. Rxg7 {[%clk 0:00:10]}  Qxg7 {[%clk 0:00:34]} 35. Qb8 {[%clk 0:00:06]}  Kg6 {[%clk 0:00:25]} 36. Qf4 {[%clk 0:00:06]}  h5 {[%clk 0:00:24]} 37. Qd6 {[%clk 0:00:05]}  Ra1 {[%clk 0:00:23]} 38. Rxa1 {[%clk 0:00:04]}  Qxa1+ {[%clk 0:00:24]} 39. Kh2 {[%clk 0:00:04]}  Qa7 {[%clk 0:00:20]} 40. exd5 {[%clk 0:00:03]}  cxd5 {[%clk 0:00:21]} 41. Bxd5 {[%clk 0:00:02]}  Qxf2+ {[%clk 0:00:19]} 42. Bg2 {[%clk 0:00:02]}  Qf7 {[%clk 0:00:19]} 43. Be4+ {[%clk 0:00:03]}  Kg7 {[%clk 0:00:18]} 44. Qe5+ {[%clk 0:00:03]}  Kf8 {[%clk 0:00:18]} 45. Qd6+ {[%clk 0:00:02]}  Kg8 {[%clk 0:00:16]} 46. Qe5 {[%clk 0:00:02]}  Qf2+ {[%clk 0:00:16]} 47. Kh3 {[%clk 0:00:02]}  Qf7 {[%clk 0:00:15]} 48. Kh4 {[%clk 0:00:02]}  Be8 {[%clk 0:00:15]} 49. Qg5+ {[%clk 0:00:03]}  Kf8 {[%clk 0:00:15]} 50. Qh6+ {[%clk 0:00:02]}  Ke7 {[%clk 0:00:15]} 51. Qg5+ {[%clk 0:00:02]}  Kd6 {[%clk 0:00:15]} 52. Qd2+ {[%clk 0:00:02]}  Ke5 {[%clk 0:00:14]} 53. Bc2 {[%clk 0:00:02]}  Qf6+ {[%clk 0:00:14]} 54. Kh3 {[%clk 0:00:03]}  Qf1+ {[%clk 0:00:13]} 55. Kh2 {[%clk 0:00:03]}  Bc6 {[%clk 0:00:12]} 56. Qc3+ {[%clk 0:00:03]}  Kd6 {[%clk 0:00:12]} 57. Qb4+ {[%clk 0:00:03]}  Kc7 {[%clk 0:00:12]} 58. Qa5+ {[%clk 0:00:04]}  Kd7 {[%clk 0:00:13]} 59. Qa7+ {[%clk 0:00:03]}  Kd6 {[%clk 0:00:12]} 60. Qd4+ {[%clk 0:00:03]}  Bd5 {[%clk 0:00:12]} 61. Qf4+ {[%clk 0:00:03]}  Qxf4 {[%clk 0:00:11]} 62. gxf4 {[%clk 0:00:04]}  Bf3 {[%clk 0:00:09]} 63. Kg3 {[%clk 0:00:04]}  Bg4 {[%clk 0:00:10]} 64. Kh4 {[%clk 0:00:05]}  Kd5 {[%clk 0:00:09]} 65. Bg6 {[%clk 0:00:05]}  Kd4 {[%clk 0:00:04]} 66. Bxh5 {[%clk 0:00:05]}  Bf5 {[%clk 0:00:03]} 67. Kg5 {[%clk 0:00:05]}  e5 {[%clk 0:00:03]} 68. Kxf5 {[%clk 0:00:05]}  exf4 {[%clk 0:00:03]} 69. Kxf4 {[%clk 0:00:05]} 1/2-1/2


[Site "https://www.chess.com"]

[Event "Titled Tuesday Blitz July 4 Early 2023"]
[White "Lazavik, Denis"]
[Black "Goltsev, Dmitry"]
[WhiteFideId "13515110"]
[BlackFideId "24176710"]
[WhiteElo "3034"]
[BlackElo "2828"]
[Result "1-0"]
[Round "10"]
[TimeControl "180+2"]
[Date "2023.07.04"]
[WhiteClock "0:02:46"]
[BlackClock "0:01:47"]
[Board "15"]

1. d4 {[%clk 0:03:00]}  Nf6 {[%clk 0:03:00]} 2. c4 {[%clk 0:03:01]}  b6 {[%clk 0:03:00]} 3. f3 {[%clk 0:03:00]}  e6 {[%clk 0:02:59]} 4. e4 {[%clk 0:02:59]}  d5 {[%clk 0:03:00]} 5. e5 {[%clk 0:02:55]}  Nfd7 {[%clk 0:02:59]} 6. cxd5 {[%clk 0:02:55]}  exd5 {[%clk 0:03:00]} 7. Nc3 {[%clk 0:02:56]}  c6 {[%clk 0:03:00]} 8. f4 {[%clk 0:02:56]}  Be7 {[%clk 0:03:00]} 9. Nf3 {[%clk 0:02:56]}  O-O {[%clk 0:02:59]} 10. Bd3 {[%clk 0:02:56]}  Ba6 {[%clk 0:02:59]} 11. O-O {[%clk 0:02:57]}  Bxd3 {[%clk 0:02:59]} 12. Qxd3 {[%clk 0:02:58]}  Qc8 {[%clk 0:02:56]} 13. f5 {[%clk 0:02:58]}  Qa6 {[%clk 0:02:56]} 14. Qd1 {[%clk 0:02:57]}  Re8 {[%clk 0:02:41]} 15. f6 {[%clk 0:02:54]}  gxf6 {[%clk 0:02:38]} 16. Nh4 {[%clk 0:02:55]}  fxe5 {[%clk 0:02:36]} 17. Nf5 {[%clk 0:02:54]}  Bf6 {[%clk 0:02:32]} 18. Qh5 {[%clk 0:02:53]}  Rf8 {[%clk 0:02:21]} 19. Bh6 {[%clk 0:02:50]}  exd4 {[%clk 0:01:50]} 20. Qg4+ {[%clk 0:02:46]}  Kh8 {[%clk 0:01:47]} 21. Bg7+ {[%clk 0:02:46]} 1-0


[Site "https://www.chess.com"]

[Event "Titled Tuesday Blitz July 4 Early 2023"]
[White "Kantor, Gergely"]
[Black "Deac, Bogdan-Daniel"]
[WhiteFideId "751499"]
[BlackFideId "1226380"]
[WhiteElo "2822"]
[BlackElo "3004"]
[Result "0-1"]
[Round "10"]
[TimeControl "180+2"]
[Date "2023.07.04"]
[WhiteClock "0:00:00"]
[BlackClock "0:00:13"]
[Board "16"]

1. d4 {[%clk 0:03:00]}  Nf6 {[%clk 0:02:59]} 2. c4 {[%clk 0:03:00]}  e6 {[%clk 0:03:00]} 3. Nf3 {[%clk 0:03:00]}  d5 {[%clk 0:03:00]} 4. Nc3 {[%clk 0:03:00]}  a6 {[%clk 0:02:58]} 5. cxd5 {[%clk 0:02:59]}  exd5 {[%clk 0:02:59]} 6. Bg5 {[%clk 0:03:00]}  Be6 {[%clk 0:02:59]} 7. e3 {[%clk 0:03:00]}  Nbd7 {[%clk 0:03:00]} 8. Bd3 {[%clk 0:02:59]}  h6 {[%clk 0:03:01]} 9. Bh4 {[%clk 0:02:59]}  g5 {[%clk 0:03:01]} 10. Bg3 {[%clk 0:03:00]}  Nh5 {[%clk 0:03:02]} 11. Be5 {[%clk 0:03:00]}  Nhf6 {[%clk 0:03:01]} 12. Bg3 {[%clk 0:03:00]}  c6 {[%clk 0:02:50]} 13. h3 {[%clk 0:02:45]}  Rg8 {[%clk 0:02:41]} 14. Qc2 {[%clk 0:02:41]}  Nb6 {[%clk 0:02:40]} 15. Ne5 {[%clk 0:02:38]}  Bd6 {[%clk 0:02:38]} 16. Bh2 {[%clk 0:02:29]}  Qc7 {[%clk 0:02:35]} 17. O-O {[%clk 0:02:27]}  Nbd7 {[%clk 0:02:11]} 18. e4 {[%clk 0:01:18]}  g4 {[%clk 0:01:09]} 19. h4 {[%clk 0:00:41]}  g3 {[%clk 0:00:50]} 20. Bxg3 {[%clk 0:00:41]}  Nxe5 {[%clk 0:00:50]} 21. Bxe5 {[%clk 0:00:36]}  Bxe5 {[%clk 0:00:51]} 22. dxe5 {[%clk 0:00:37]}  Qxe5 {[%clk 0:00:52]} 23. exd5 {[%clk 0:00:34]}  Nxd5 {[%clk 0:00:52]} 24. Nxd5 {[%clk 0:00:31]}  Qxd5 {[%clk 0:00:30]} 25. Be4 {[%clk 0:00:31]}  Qh5 {[%clk 0:00:31]} 26. Rfe1 {[%clk 0:00:16]}  Kf8 {[%clk 0:00:29]} 27. Re3 {[%clk 0:00:10]}  Rd8 {[%clk 0:00:22]} 28. Bf3 {[%clk 0:00:05]}  Qxh4 {[%clk 0:00:20]} 29. Rae1 {[%clk 0:00:05]}  Qg5 {[%clk 0:00:19]} 30. b3 {[%clk 0:00:05]}  Rg6 {[%clk 0:00:18]} 31. Re5 {[%clk 0:00:05]}  Qf6 {[%clk 0:00:17]} 32. Qc5+ {[%clk 0:00:05]}  Kg7 {[%clk 0:00:14]} 33. Qb4 {[%clk 0:00:00]}  Qxf3 {[%clk 0:00:13]} 0-1


[Site "https://www.chess.com"]

[Event "Titled Tuesday Blitz July 4 Early 2023"]
[White "Kramnik, Vladimir"]
[Black "demon64fields"]
[WhiteFideId "4101588"]
[WhiteElo "2972"]
[BlackElo "2821"]
[Result "0-1"]
[Round "10"]
[TimeControl "180+2"]
[Date "2023.07.04"]
[WhiteClock "0:00:00"]
[BlackClock "0:01:36"]
[Board "17"]

1. e4 {[%clk 0:03:00]}  e6 {[%clk 0:02:59]} 2. d4 {[%clk 0:03:00]}  d5 {[%clk 0:02:59]} 3. e5 {[%clk 0:03:00]}  c5 {[%clk 0:03:00]} 4. c3 {[%clk 0:03:00]}  Nc6 {[%clk 0:03:00]} 5. Nf3 {[%clk 0:03:01]}  Bd7 {[%clk 0:03:00]} 6. Be2 {[%clk 0:03:00]}  Nge7 {[%clk 0:03:00]} 7. O-O {[%clk 0:03:00]}  Ng6 {[%clk 0:03:01]} 8. Be3 {[%clk 0:02:59]}  cxd4 {[%clk 0:03:01]} 9. cxd4 {[%clk 0:02:59]}  Be7 {[%clk 0:03:02]} 10. Nc3 {[%clk 0:02:57]}  O-O {[%clk 0:03:02]} 11. a3 {[%clk 0:02:48]}  f6 {[%clk 0:03:02]} 12. exf6 {[%clk 0:02:47]}  Bxf6 {[%clk 0:03:03]} 13. Rc1 {[%clk 0:02:45]}  Rc8 {[%clk 0:03:03]} 14. Re1 {[%clk 0:02:43]}  Nh4 {[%clk 0:02:54]} 15. Nxh4 {[%clk 0:02:38]}  Bxh4 {[%clk 0:02:55]} 16. g3 {[%clk 0:02:34]}  Bg5 {[%clk 0:02:52]} 17. f4 {[%clk 0:02:29]}  Bf6 {[%clk 0:02:52]} 18. Bf3 {[%clk 0:02:21]}  Ne7 {[%clk 0:02:47]} 19. Bf2 {[%clk 0:02:20]}  Qb6 {[%clk 0:02:40]} 20. Qd2 {[%clk 0:02:04]}  Nf5 {[%clk 0:02:33]} 21. Rcd1 {[%clk 0:02:03]}  Nd6 {[%clk 0:02:21]} 22. Qe2 {[%clk 0:01:49]}  Kh8 {[%clk 0:02:15]} 23. Rd3 {[%clk 0:01:32]}  Nc4 {[%clk 0:02:12]} 24. Rb1 {[%clk 0:01:24]}  a5 {[%clk 0:02:10]} 25. Kg2 {[%clk 0:01:23]}  Qd6 {[%clk 0:02:07]} 26. h4 {[%clk 0:01:14]}  b5 {[%clk 0:02:05]} 27. Qe1 {[%clk 0:01:11]}  b4 {[%clk 0:01:47]} 28. axb4 {[%clk 0:01:11]}  Qxb4 {[%clk 0:01:48]} 29. h5 {[%clk 0:01:05]}  a4 {[%clk 0:01:45]} 30. Nd1 {[%clk 0:00:51]}  Qxe1 {[%clk 0:01:43]} 31. Bxe1 {[%clk 0:00:50]}  Rb8 {[%clk 0:01:43]} 32. Bc3 {[%clk 0:00:35]}  Rb3 {[%clk 0:01:40]} 33. Rc1 {[%clk 0:00:00]}  Bb5 {[%clk 0:01:36]} 0-1


[Site "https://www.chess.com"]

[Event "Titled Tuesday Blitz July 4 Early 2023"]
[White "Aravindh, Chithambaram VR."]
[Black "Rustemov, Alexander"]
[WhiteFideId "5072786"]
[BlackFideId "4119002"]
[WhiteElo "2916"]
[BlackElo "2797"]
[Result "1-0"]
[Round "10"]
[TimeControl "180+2"]
[Date "2023.07.04"]
[WhiteClock "0:00:35"]
[BlackClock "0:00:19"]
[Board "18"]

1. b3 {[%clk 0:03:00]}  d5 {[%clk 0:02:57]} 2. Bb2 {[%clk 0:03:00]}  Nf6 {[%clk 0:02:57]} 3. Nf3 {[%clk 0:03:00]}  Bf5 {[%clk 0:02:58]} 4. g3 {[%clk 0:03:00]}  e6 {[%clk 0:02:57]} 5. Bg2 {[%clk 0:03:01]}  h6 {[%clk 0:02:57]} 6. O-O {[%clk 0:03:01]}  Be7 {[%clk 0:02:58]} 7. c4 {[%clk 0:03:02]}  O-O {[%clk 0:02:58]} 8. d3 {[%clk 0:03:02]}  a5 {[%clk 0:02:56]} 9. Nc3 {[%clk 0:02:59]}  c6 {[%clk 0:02:54]} 10. Re1 {[%clk 0:02:57]}  Bh7 {[%clk 0:02:53]} 11. e4 {[%clk 0:02:56]}  dxc4 {[%clk 0:02:52]} 12. bxc4 {[%clk 0:02:55]}  c5 {[%clk 0:02:40]} 13. e5 {[%clk 0:02:43]}  Nfd7 {[%clk 0:02:39]} 14. Ne4 {[%clk 0:02:42]}  Nc6 {[%clk 0:02:39]} 15. Rb1 {[%clk 0:02:41]}  Qc7 {[%clk 0:02:36]} 16. Bc3 {[%clk 0:02:34]}  Rfd8 {[%clk 0:02:28]} 17. Qc1 {[%clk 0:02:33]}  Rab8 {[%clk 0:02:15]} 18. Qf4 {[%clk 0:02:26]}  Nb4 {[%clk 0:02:09]} 19. Bf1 {[%clk 0:01:33]}  Nxa2 {[%clk 0:02:08]} 20. Bb2 {[%clk 0:01:23]}  Nb4 {[%clk 0:02:07]} 21. Nd6 {[%clk 0:01:22]}  Rf8 {[%clk 0:02:02]} 22. Rbd1 {[%clk 0:01:19]}  b6 {[%clk 0:01:58]} 23. d4 {[%clk 0:01:17]}  cxd4 {[%clk 0:01:43]} 24. Nxd4 {[%clk 0:01:16]}  Nc2 {[%clk 0:01:22]} 25. N4b5 {[%clk 0:01:04]}  Qc5 {[%clk 0:01:16]} 26. Re2 {[%clk 0:01:03]}  a4 {[%clk 0:01:05]} 27. Ne4 {[%clk 0:00:57]}  Qxc4 {[%clk 0:01:01]} 28. Nf6+ {[%clk 0:00:55]}  Nxf6 {[%clk 0:00:55]} 29. Qxc4 {[%clk 0:00:56]}  Rfc8 {[%clk 0:00:55]} 30. exf6 {[%clk 0:00:40]}  Rxc4 {[%clk 0:00:52]} 31. fxe7 {[%clk 0:00:41]}  Rcc8 {[%clk 0:00:52]} 32. Red2 {[%clk 0:00:41]}  Re8 {[%clk 0:00:45]} 33. Nc7 {[%clk 0:00:42]}  f6 {[%clk 0:00:38]} 34. Rd8 {[%clk 0:00:36]}  Kf7 {[%clk 0:00:25]} 35. Nxe8 {[%clk 0:00:34]}  Rb7 {[%clk 0:00:25]} 36. Nd6+ {[%clk 0:00:34]}  Kxe7 {[%clk 0:00:19]} 37. Nxb7 {[%clk 0:00:35]} 1-0


[Site "https://www.chess.com"]

[Event "Titled Tuesday Blitz July 4 Early 2023"]
[White "Shimanov, Aleksandr"]
[Black "Mekhitarian, Krikor Sevag"]
[WhiteFideId "4198603"]
[BlackFideId "2107660"]
[WhiteElo "2911"]
[BlackElo "2794"]
[Result "0-1"]
[Round "10"]
[TimeControl "180+2"]
[Date "2023.07.04"]
[WhiteClock "0:00:00"]
[BlackClock "0:00:01"]
[Board "19"]

1. e4 {[%clk 0:03:00]}  e6 {[%clk 0:02:55]} 2. d4 {[%clk 0:02:49]}  d5 {[%clk 0:02:55]} 3. exd5 {[%clk 0:02:49]}  exd5 {[%clk 0:02:55]} 4. Nf3 {[%clk 0:02:48]}  Nf6 {[%clk 0:02:56]} 5. Bd3 {[%clk 0:02:47]}  Bd6 {[%clk 0:02:57]} 6. Qe2+ {[%clk 0:02:47]}  Be7 {[%clk 0:02:57]} 7. Bf4 {[%clk 0:02:42]}  O-O {[%clk 0:02:56]} 8. O-O {[%clk 0:02:41]}  Re8 {[%clk 0:02:56]} 9. Qd2 {[%clk 0:02:38]}  Ne4 {[%clk 0:02:52]} 10. Bxe4 {[%clk 0:02:33]}  dxe4 {[%clk 0:02:52]} 11. Ne5 {[%clk 0:02:34]}  f6 {[%clk 0:02:39]} 12. Nc4 {[%clk 0:02:33]}  Be6 {[%clk 0:02:39]} 13. Ne3 {[%clk 0:02:33]}  c6 {[%clk 0:02:23]} 14. c4 {[%clk 0:02:31]}  Bf7 {[%clk 0:01:39]} 15. Nc3 {[%clk 0:02:27]}  Bd6 {[%clk 0:01:34]} 16. Bxd6 {[%clk 0:02:10]}  Qxd6 {[%clk 0:01:35]} 17. Rad1 {[%clk 0:02:07]}  Nd7 {[%clk 0:01:35]} 18. b3 {[%clk 0:02:07]}  Rad8 {[%clk 0:01:27]} 19. Nf5 {[%clk 0:02:06]}  Qf8 {[%clk 0:01:24]} 20. Qf4 {[%clk 0:02:04]}  g5 {[%clk 0:01:06]} 21. Qg3 {[%clk 0:01:59]}  Nb6 {[%clk 0:00:58]} 22. Rfe1 {[%clk 0:01:52]}  Bg6 {[%clk 0:00:57]} 23. Nd6 {[%clk 0:01:51]}  Qxd6 {[%clk 0:00:56]} 24. Qxd6 {[%clk 0:01:44]}  Rxd6 {[%clk 0:00:57]} 25. c5 {[%clk 0:01:44]}  Nd5 {[%clk 0:00:47]} 26. cxd6 {[%clk 0:01:03]}  Nxc3 {[%clk 0:00:46]} 27. Rd2 {[%clk 0:01:02]}  Nd5 {[%clk 0:00:46]} 28. a3 {[%clk 0:00:48]}  Rd8 {[%clk 0:00:45]} 29. b4 {[%clk 0:00:48]}  Rxd6 {[%clk 0:00:46]} 30. Rb2 {[%clk 0:00:48]}  a6 {[%clk 0:00:39]} 31. g3 {[%clk 0:00:47]}  Kf7 {[%clk 0:00:38]} 32. a4 {[%clk 0:00:45]}  Nc7 {[%clk 0:00:38]} 33. Rd1 {[%clk 0:00:45]}  Bf5 {[%clk 0:00:38]} 34. Kf1 {[%clk 0:00:43]}  Be6 {[%clk 0:00:38]} 35. Ke2 {[%clk 0:00:42]}  f5 {[%clk 0:00:38]} 36. f3 {[%clk 0:00:36]}  exf3+ {[%clk 0:00:38]} 37. Kxf3 {[%clk 0:00:37]}  Bd5+ {[%clk 0:00:38]} 38. Kf2 {[%clk 0:00:37]}  Kf6 {[%clk 0:00:34]} 39. Re1 {[%clk 0:00:33]}  Be6 {[%clk 0:00:35]} 40. Rd1 {[%clk 0:00:33]}  h6 {[%clk 0:00:34]} 41. Rdd2 {[%clk 0:00:33]}  Bd7 {[%clk 0:00:35]} 42. Ke3 {[%clk 0:00:31]}  Ne6 {[%clk 0:00:35]} 43. Rd1 {[%clk 0:00:30]}  f4+ {[%clk 0:00:36]} 44. gxf4 {[%clk 0:00:30]}  Nxf4 {[%clk 0:00:36]} 45. Rf2 {[%clk 0:00:29]}  Re6+ {[%clk 0:00:32]} 46. Kd2 {[%clk 0:00:29]}  Re4 {[%clk 0:00:32]} 47. Kc2 {[%clk 0:00:25]}  Bf5 {[%clk 0:00:32]} 48. Kb2 {[%clk 0:00:24]}  Re3 {[%clk 0:00:30]} 49. Rfd2 {[%clk 0:00:21]}  Ke6 {[%clk 0:00:28]} 50. b5 {[%clk 0:00:19]}  axb5 {[%clk 0:00:28]} 51. axb5 {[%clk 0:00:20]}  cxb5 {[%clk 0:00:28]} 52. d5+ {[%clk 0:00:21]}  Kd6 {[%clk 0:00:29]} 53. Ra1 {[%clk 0:00:20]}  Nd3+ {[%clk 0:00:25]} 54. Kc3 {[%clk 0:00:20]}  b4+ {[%clk 0:00:23]} 55. Kc4 {[%clk 0:00:19]}  b3 {[%clk 0:00:20]} 56. Kxb3 {[%clk 0:00:15]}  Nc5+ {[%clk 0:00:21]} 57. Kc4 {[%clk 0:00:12]}  Re4+ {[%clk 0:00:21]} 58. Kc3 {[%clk 0:00:11]}  Re3+ {[%clk 0:00:20]} 59. Kc4 {[%clk 0:00:10]}  Bd7 {[%clk 0:00:19]} 60. Rf1 {[%clk 0:00:05]}  Re4+ {[%clk 0:00:19]} 61. Kc3 {[%clk 0:00:05]}  b5 {[%clk 0:00:14]} 62. Rf6+ {[%clk 0:00:05]}  Ke5 {[%clk 0:00:15]} 63. Rxh6 {[%clk 0:00:05]}  b4+ {[%clk 0:00:15]} 64. Kb2 {[%clk 0:00:05]}  Bb5 {[%clk 0:00:12]} 65. d6 {[%clk 0:00:05]}  Rd4 {[%clk 0:00:09]} 66. Rxd4 {[%clk 0:00:05]}  Kxd4 {[%clk 0:00:10]} 67. Rg6 {[%clk 0:00:05]}  Nd3+ {[%clk 0:00:04]} 68. Kb3 {[%clk 0:00:04]}  Bc4+ {[%clk 0:00:03]} 69. Kc2 {[%clk 0:00:04]}  b3+ {[%clk 0:00:04]} 70. Kb1 {[%clk 0:00:04]}  Ne5 {[%clk 0:00:03]} 71. Rxg5 {[%clk 0:00:05]}  Bd3+ {[%clk 0:00:01]} 72. Kb2 {[%clk 0:00:05]}  Bc4 {[%clk 0:00:02]} 73. Rg3 {[%clk 0:00:03]}  Nd7 {[%clk 0:00:01]} 74. h4 {[%clk 0:00:03]}  Nc5 {[%clk 0:00:01]} 75. Rg4+ {[%clk 0:00:00]}  Kd5 {[%clk 0:00:01]} 0-1


[Site "https://www.chess.com"]

[Event "Titled Tuesday Blitz July 4 Early 2023"]
[White "Demidov, Mikhail"]
[Black "Gorovets, Andrey"]
[WhiteFideId "4197143"]
[BlackFideId "13504037"]
[WhiteElo "2894"]
[BlackElo "2770"]
[Result "1-0"]
[Round "10"]
[TimeControl "180+2"]
[Date "2023.07.04"]
[WhiteClock "0:00:14"]
[BlackClock "0:00:00"]
[Board "21"]

1. Nf3 {[%clk 0:02:53]}  c5 {[%clk 0:03:00]} 2. e3 {[%clk 0:02:53]}  g6 {[%clk 0:02:59]} 3. d4 {[%clk 0:02:54]}  Nf6 {[%clk 0:02:59]} 4. Be2 {[%clk 0:02:53]}  Bg7 {[%clk 0:02:59]} 5. O-O {[%clk 0:02:51]}  b6 {[%clk 0:03:00]} 6. d5 {[%clk 0:02:51]}  e6 {[%clk 0:02:57]} 7. Nc3 {[%clk 0:02:51]}  exd5 {[%clk 0:02:55]} 8. Nxd5 {[%clk 0:02:51]}  Bb7 {[%clk 0:02:53]} 9. Bc4 {[%clk 0:02:51]}  O-O {[%clk 0:02:49]} 10. Re1 {[%clk 0:02:50]}  Re8 {[%clk 0:02:49]} 11. c3 {[%clk 0:02:38]}  Na6 {[%clk 0:02:43]} 12. e4 {[%clk 0:02:35]}  Nc7 {[%clk 0:02:11]} 13. Bg5 {[%clk 0:02:29]}  Bxd5 {[%clk 0:02:03]} 14. Bxf6 {[%clk 0:02:26]}  Qxf6 {[%clk 0:01:53]} 15. Bxd5 {[%clk 0:02:26]}  Nxd5 {[%clk 0:01:29]} 16. Qxd5 {[%clk 0:02:23]}  Qc6 {[%clk 0:01:30]} 17. Rad1 {[%clk 0:02:18]}  Re7 {[%clk 0:01:28]} 18. Qxc6 {[%clk 0:01:35]}  dxc6 {[%clk 0:01:29]} 19. Rd6 {[%clk 0:01:35]}  Rc8 {[%clk 0:01:12]} 20. Kf1 {[%clk 0:01:34]}  Kf8 {[%clk 0:01:11]} 21. Nd2 {[%clk 0:01:16]}  Be5 {[%clk 0:01:09]} 22. Rd3 {[%clk 0:01:15]}  b5 {[%clk 0:01:09]} 23. b3 {[%clk 0:01:03]}  Ke8 {[%clk 0:01:05]} 24. g3 {[%clk 0:01:01]}  Rd8 {[%clk 0:00:58]} 25. Ree3 {[%clk 0:01:01]}  Red7 {[%clk 0:00:53]} 26. Ke2 {[%clk 0:00:55]}  Bc7 {[%clk 0:00:42]} 27. Rxd7 {[%clk 0:00:49]}  Rxd7 {[%clk 0:00:41]} 28. Rd3 {[%clk 0:00:49]}  Re7 {[%clk 0:00:41]} 29. f4 {[%clk 0:00:48]}  f6 {[%clk 0:00:34]} 30. Kf3 {[%clk 0:00:46]}  g5 {[%clk 0:00:30]} 31. Nf1 {[%clk 0:00:32]}  gxf4 {[%clk 0:00:21]} 32. gxf4 {[%clk 0:00:32]}  Rd7 {[%clk 0:00:07]} 33. Rxd7 {[%clk 0:00:32]}  Kxd7 {[%clk 0:00:08]} 34. c4 {[%clk 0:00:30]}  Ba5 {[%clk 0:00:07]} 35. Kg4 {[%clk 0:00:30]}  Ke6 {[%clk 0:00:07]} 36. Ng3 {[%clk 0:00:25]}  Bd2 {[%clk 0:00:06]} 37. Kf3 {[%clk 0:00:25]}  a6 {[%clk 0:00:06]} 38. Nf5 {[%clk 0:00:25]}  Bc1 {[%clk 0:00:05]} 39. Nh4 {[%clk 0:00:22]}  Bd2 {[%clk 0:00:03]} 40. Ng2 {[%clk 0:00:20]}  Kd6 {[%clk 0:00:02]} 41. Ke2 {[%clk 0:00:18]}  Bc1 {[%clk 0:00:02]} 42. Kf3 {[%clk 0:00:17]}  Bd2 {[%clk 0:00:02]} 43. Ne3 {[%clk 0:00:16]}  Ke6 {[%clk 0:00:02]} 44. Nd1 {[%clk 0:00:16]}  Bc1 {[%clk 0:00:02]} 45. Nf2 {[%clk 0:00:17]}  Bd2 {[%clk 0:00:03]} 46. h3 {[%clk 0:00:16]}  Bc1 {[%clk 0:00:03]} 47. Nd3 {[%clk 0:00:16]}  Bd2 {[%clk 0:00:03]} 48. Nxc5+ {[%clk 0:00:16]}  Kd6 {[%clk 0:00:03]} 49. Nd3 {[%clk 0:00:14]}  bxc4 {[%clk 0:00:04]} 50. bxc4 {[%clk 0:00:14]}  Bc3 {[%clk 0:00:03]} 51. Kg4 {[%clk 0:00:15]}  Ke6 {[%clk 0:00:04]} 52. Kh5 {[%clk 0:00:14]}  Bd4 {[%clk 0:00:00]} 53. Kh6 {[%clk 0:00:14]} 1-0


[Site "https://www.chess.com"]